fUST/lending_fUST_20250616
["ID","MTS","AMOUNT","RATE_DAILY","PERIOD"]
[366106577,1750067433230,-151.0,0.00021615,2]
[366106578,1750067433240,-151.0,0.00021615,2]
[366106579,1750067433250,-25000.0,0.00021615,2]
[366106580,1750067433261,-156.509781,0.00021639,2]
[366106581,1750067433270,-2351.0,0.00021639,2]
[366106582,1750067433281,-381.02903937,0.00021716,2]
[366106583,1750067433290,-769.77043432,0.00021797,6]
[366106584,1750067433299,-809.93,0.0002181,7]
[366106585,1750067433309,-151.0,0.00021817,2]
[366106586,1750067433318,-4717.87099878,0.00021817,2]
[366106587,1750067433328,-151.0,0.00021917,2]
[366106588,1750067433337,-151.0,0.00021917,2]
[366106589,1750067433347,-151.0,0.00021917,2]
[366106590,1750067433357,-151.0,0.00021917,2]
[366106591,1750067433367,-151.0,0.00021917,2]
[366106592,1750067433376,-151.0,0.00021917,2]
[366106593,1750067433386,-151.0,0.00021917,2]
[366106594,1750067433397,-151.0,0.00021917,2]
[366106595,1750067433406,-151.0,0.00021917,2]
[366106596,1750067433416,-275.42208913,0.00021917,2]
[366106597,1750067433426,-154.786526,0.00021917,2]
[366106598,1750067433435,-151.0,0.00021917,2]
[366106599,1750067433445,-151.0,0.00021917,2]
[366106600,1750067433456,-151.0,0.00021917,2]
[366106601,1750067433466,-151.0,0.00021917,2]
[366106602,1750067433477,-151.0,0.00021917,2]
[366106603,1750067433487,-240.803127,0.00021917,2]
[366106604,1750067433497,-152.148333,0.00021917,2]
[366106605,1750067433508,-198.349583,0.00021917,2]
[366106606,1750067433518,-198.349583,0.00021917,2]
[366106607,1750067433529,-198.349583,0.00021917,2]
[366106608,1750067433539,-198.349583,0.00021917,2]
[366106609,1750067433549,-198.349583,0.00021917,2]
[366106610,1750067433558,-198.349583,0.00021917,2]
[366106611,1750067433569,-151.0,0.00021917,2]
[366106612,1750067433578,-151.0,0.00021917,2]
[366106613,1750067433588,-151.0,0.00021917,2]
[366106614,1750067433598,-211.021358,0.00021917,2]
[366106615,1750067433607,-182.6124,0.00021917,2]
[366106616,1750067433617,-182.6124,0.00021917,2]
[366106617,1750067433628,-182.6124,0.00021917,2]
[366106618,1750067433639,-182.6124,0.00021917,2]
[366106619,1750067433649,-182.6124,0.00021917,2]
[366106620,1750067433659,-182.6124,0.00021917,2]
[366106621,1750067433669,-182.6124,0.00021917,2]
[366106622,1750067433678,-182.6124,0.00021917,2]
[366106623,1750067433688,-151.0,0.00021917,2]
[366106624,1750067433698,-151.0,0.00021917,2]
[366106625,1750067433708,-151.0,0.00021917,2]
[366106626,1750067433719,-151.0,0.00021917,2]
[366106627,1750067433729,-152.650688,0.00021917,2]
[366106628,1750067433740,-460.0,0.00021917,4]
[366106629,1750067433750,-460.0,0.00021917,4]
[366106630,1750067433761,-164.130632,0.00021917,2]
[366106631,1750067433771,-443.69206974,0.00021917,4]
[366106632,1750067433782,-433.5471557,0.00021917,4]
[366106633,1750067433792,-460.0,0.00021917,4]
[366106634,1750067433802,-460.0,0.00021917,4]
[366106635,1750067433812,-460.0,0.00021917,4]
[366106636,1750067433822,-151.0,0.00021917,2]
[366106637,1750067433832,-460.0,0.00021917,4]
[366106638,1750067433842,-157.855138,0.00021917,2]
[366106639,1750067433852,-169.111676,0.00021917,2]
[366106640,1750067433862,-380.33389559,0.00021917,4]
[366106641,1750067433872,-460.0,0.00021917,4]
[366106642,1750067433882,-460.0,0.00021917,4]
[366106643,1750067433892,-460.0,0.00021917,4]
[366106644,1750067433903,-460.0,0.00021917,4]
[366106645,1750067433913,-151.0,0.00021917,2]
[366106646,1750067433923,-243.680767,0.00021917,2]
[366106647,1750067433933,-460.0,0.00021917,4]
[366106648,1750067433943,-460.0,0.00021917,4]
[366106649,1750067433952,-237.07720742,0.00021917,4]
[366106650,1750067433962,-1277.663851,0.00021917,2]
[366106651,1750067433972,-1277.663851,0.00021917,2]
[366106652,1750067433983,-1277.663851,0.00021917,2]
[366106653,1750067433992,-1277.663851,0.00021917,2]
[366106654,1750067434002,-444.88283975,0.00021917,4]
[366106655,1750067434012,-161.99085637,0.00021917,4]
[366106656,1750067434023,-460.0,0.00021917,4]
[366106657,1750067434033,-440.0,0.00021917,4]
[366106658,1750067434043,-434.71521467,0.00021917,4]
[366106659,1750067434053,-460.0,0.00021917,4]
[366106660,1750067434063,-460.0,0.00021917,4]
[366106661,1750067434075,-461.33718649,0.00021917,4]
[366106662,1750067434085,-446.37131908,0.00021917,4]
[366106663,1750067434095,-460.0,0.00021917,4]
[366106664,1750067434105,-460.0,0.00021917,4]
[366106665,1750067434115,-400.0,0.00021917,4]
[366106666,1750067434126,-440.0,0.00021917,4]
[366106667,1750067434136,-471.12,0.00021917,4]
[366106668,1750067434146,-460.0,0.00021917,4]
[366106669,1750067434156,-460.0,0.00021917,4]
[366106670,1750067434166,-151.0,0.00021917,2]
[366106671,1750067434176,-460.0,0.00021917,4]
[366106672,1750067434185,-151.0,0.00021917,2]
[366106673,1750067434195,-151.0,0.00021917,2]
[366106674,1750067434204,-151.0,0.00021917,2]
[366106675,1750067434214,-151.0,0.00021917,2]
[366106676,1750067434224,-258.741257,0.00021917,2]
[366106677,1750067434233,-460.0,0.00021917,4]
[366106678,1750067434243,-409.51107544,0.00021917,4]
[366106679,1750067434253,-214.59545419,0.00021917,4]
[366106680,1750067434263,-151.0,0.00021917,2]
[366106681,1750067434275,-151.0,0.00021917,2]
[366106682,1750067434285,-151.0,0.00021917,2]
[366106683,1750067434295,-151.0,0.00021917,2]
[366106684,1750067434305,-151.0,0.00021917,2]
[366106685,1750067434315,-154.755713,0.00021917,2]
[366106686,1750067434325,-151.0,0.00021917,2]
[366106687,1750067434334,-151.0,0.00021917,2]
[366106688,1750067434344,-157.145381,0.00021917,2]
[366106689,1750067434354,-432.00235868,0.00021917,4]
[366106690,1750067434364,-462.74857471,0.00021917,4]
[366106691,1750067434373,-460.0,0.00021917,4]
[366106692,1750067434384,-460.0,0.00021917,4]
[366106693,1750067434394,-485.315503,0.00021917,4]
[366106694,1750067434403,-460.0,0.00021917,4]
[366106695,1750067434415,-460.0,0.00021917,4]
[366106696,1750067434425,-363.99610658,0.00021917,4]
[366106697,1750067434435,-151.0,0.00021917,2]
[366106698,1750067434445,-460.0,0.00021917,4]
[366106699,1750067434455,-460.0,0.00021917,4]
[366106700,1750067434464,-416.2162323,0.00021917,4]
[366106701,1750067434473,-480.58439964,0.00021917,4]
[366106702,1750067434483,-460.0,0.00021917,4]
[366106703,1750067434492,-337.66965558,0.00021917,4]
[366106704,1750067434502,-460.0,0.00021917,4]
[366106705,1750067434511,-460.0,0.00021917,4]
[366106706,1750067434521,-460.0,0.00021917,4]
[366106707,1750067434533,-432.11194564,0.00021917,4]
[366106708,1750067434542,-460.0,0.00021917,4]
[366106709,1750067434552,-402.27180784,0.00021917,4]
[366106710,1750067434561,-460.0,0.00021917,4]
[366106711,1750067434570,-151.0,0.00021917,2]
[366106712,1750067434671,-440.53309701,0.00021917,4]
[366106713,1750067434681,-151.0,0.00021917,2]
[366106714,1750067434691,-151.0,0.00021917,2]
[366106715,1750067434700,-151.0,0.00021917,2]
[366106716,1750067434710,-164.9369668,0.00021917,4]
[366106717,1750067434719,-151.0,0.00021917,2]
[366106718,1750067434729,-151.0,0.00021917,2]
[366106719,1750067434738,-151.0,0.00021917,2]
[366106720,1750067434747,-151.0,0.00021917,2]
[366106721,1750067434758,-460.0,0.00021917,4]
[366106722,1750067434767,-460.0,0.00021917,4]
[366106723,1750067434779,-460.0,0.00021917,4]
[366106724,1750067434789,-460.0,0.00021917,4]
[366106725,1750067434798,-460.0,0.00021917,4]
[366106726,1750067434808,-460.0,0.00021917,4]
[366106727,1750067434818,-460.0,0.00021917,4]
[366106728,1750067434827,-460.0,0.00021917,4]
[366106729,1750067434837,-466.08580655,0.00021917,4]
[366106730,1750067434846,-462.08034479,0.00021917,4]
[366106731,1750067434857,-460.0,0.00021917,4]
[366106732,1750067434867,-460.0,0.00021917,4]
[366106733,1750067434876,-444.52970269,0.00021917,4]
[366106734,1750067434887,-467.74573919,0.00021917,4]
[366106735,1750067434897,-460.0,0.00021917,4]
[366106736,1750067434907,-460.0,0.00021917,2]
[366106737,1750067434916,-460.0,0.00021917,4]
[366106738,1750067434926,-500.0,0.00021917,4]
[366106739,1750067434935,-460.0,0.00021917,4]
[366106740,1750067434944,-460.0,0.00021917,4]
[366106741,1750067434954,-460.0,0.00021917,4]
[366106742,1750067434963,-433.56700955,0.00021917,4]
[366106743,1750067434975,-460.0,0.00021917,4]
[366106744,1750067434984,-451.52448437,0.00021917,4]
[366106745,1750067434994,-460.0,0.00021917,4]
[366106746,1750067435003,-460.0,0.00021917,4]
[366106747,1750067435013,-432.18923227,0.00021917,4]
[366106748,1750067435024,-467.07916544,0.00021917,4]
[366106749,1750067435034,-151.0,0.00021917,2]
[366106750,1750067435044,-151.0,0.00021917,2]
[366106751,1750067435055,-434.71279783,0.00021917,4]
[366106752,1750067435065,-431.08777953,0.00021917,4]
[366106753,1750067435077,-460.0,0.00021917,4]
[366106754,1750067435086,-460.0,0.00021917,4]
[366106755,1750067435095,-460.0,0.00021917,4]
[366106756,1750067435104,-460.0,0.00021917,4]
[366106757,1750067435114,-460.0,0.00021917,4]
[366106758,1750067435123,-460.0,0.00021917,4]
[366106759,1750067435133,-460.0,0.00021917,4]
[366106760,1750067435142,-461.92134131,0.00021917,4]
[366106761,1750067435151,-460.0,0.00021917,4]
[366106762,1750067435160,-467.26932066,0.00021917,4]
[366106763,1750067435169,-437.04968891,0.00021917,4]
[366106764,1750067435179,-460.0,0.00021917,4]
[366106765,1750067435189,-460.0,0.00021917,4]
[366106766,1750067435198,-460.0,0.00021917,4]
[366106767,1750067435209,-460.0,0.00021917,4]
[366106768,1750067435220,-460.0,0.00021917,4]
[366106769,1750067435230,-460.0,0.00021917,4]
[366106770,1750067435241,-500.0,0.00021917,4]
[366106771,1750067435251,-500.0,0.00021917,4]
[366106772,1750067435261,-500.0,0.00021917,4]
[366106773,1750067435270,-500.0,0.00021917,4]
[366106774,1750067435281,-500.0,0.00021917,4]
[366106775,1750067435291,-460.0,0.00021917,4]
[366106776,1750067435300,-500.0,0.00021917,4]
[366106777,1750067435309,-500.0,0.00021917,4]
[366106778,1750067435318,-500.0,0.00021917,4]
[366106779,1750067435328,-500.0,0.00021917,4]
[366106780,1750067435337,-500.0,0.00021917,4]
[366106781,1750067435346,-252.47696192,0.00021917,4]
[366106782,1750067435356,-465.07343899,0.00021917,4]
[366106783,1750067435365,-460.0,0.00021917,4]
[366106784,1750067435375,-460.0,0.00021917,4]
[366106785,1750067435384,-460.0,0.00021917,4]
[366106786,1750067435393,-430.0,0.00021917,4]
[366106787,1750067435402,-460.0,0.00021917,4]
[366106788,1750067435412,-460.0,0.00021917,4]
[366106789,1750067435421,-465.49622247,0.00021917,4]
[366106790,1750067435430,-440.0,0.00021917,4]
[366106791,1750067435439,-460.0,0.00021917,4]
[366106792,1750067435448,-460.0,0.00021917,4]
[366106793,1750067435458,-418.12603671,0.00021917,4]
[366106794,1750067435467,-460.0,0.00021917,4]
[366106795,1750067435478,-460.0,0.00021917,4]
[366106796,1750067435488,-460.0,0.00021917,4]
[366106797,1750067435498,-460.0,0.00021917,4]
[366106798,1750067435508,-460.0,0.00021917,4]
[366106799,1750067435519,-477.30142086,0.00021917,4]
[366106800,1750067435529,-460.0,0.00021917,4]
[366106801,1750067435539,-460.0,0.00021917,4]
[366106802,1750067435548,-460.0,0.00021917,4]
[366106803,1750067435558,-460.0,0.00021917,4]
[366106804,1750067435567,-460.0,0.00021917,4]
[366106805,1750067435576,-463.81494935,0.00021917,4]
[366106806,1750067435586,-433.51911054,0.00021917,4]
[366106807,1750067435595,-414.0664668,0.00021917,4]
[366106808,1750067435605,-451.91125862,0.00021917,4]
[366106809,1750067435614,-605.52298959,0.00021917,4]
[366106810,1750067435623,-460.0,0.00021917,4]
[366106811,1750067435633,-460.0,0.00021917,4]
[366106812,1750067435642,-460.0,0.00021917,4]
[366106813,1750067435651,-431.03795017,0.00021917,4]
[366106814,1750067435661,-460.0,0.00021917,4]
[366106815,1750067435670,-458.81128958,0.00021917,4]
[366106816,1750067435680,-280.0,0.00021917,4]
[366106817,1750067435689,-476.55874631,0.00021917,4]
[366106818,1750067435698,-398.77224526,0.00021917,4]
[366106819,1750067435708,-348.10021219,0.00021917,4]
[366106820,1750067435717,-460.0,0.00021917,4]
[366106821,1750067435726,-460.0,0.00021917,4]
[366106822,1750067435735,-460.0,0.00021917,4]
[366106823,1750067435744,-460.0,0.00021917,4]
[366106824,1750067435754,-460.0,0.00021917,4]
[366106825,1750067435763,-460.0,0.00021917,4]
[366106826,1750067435772,-460.0,0.00021917,4]
[366106827,1750067435783,-460.0,0.00021917,4]
[366106828,1750067435793,-460.0,0.00021917,4]
[366106829,1750067435803,-332.28131824,0.00021917,4]
[366106830,1750067435813,-460.0,0.00021917,4]
[366106831,1750067435823,-460.0,0.00021917,4]
[366106832,1750067435833,-151.0,0.00021917,2]
[366106833,1750067435842,-185.05043185,0.00021917,4]
[366106834,1750067435852,-151.0,0.00021917,2]
[366106835,1750067435861,-151.0,0.00021917,2]
[366106836,1750067435870,-460.0,0.00021917,4]
[366106837,1750067435880,-460.0,0.00021917,4]
[366106838,1750067435889,-464.3987596,0.00021917,4]
[366106839,1750067435899,-460.0,0.00021917,4]
[366106840,1750067435909,-460.0,0.00021917,4]
[366106841,1750067435918,-461.95810043,0.00021917,4]
[366106842,1750067435928,-460.0,0.00021917,4]
[366106843,1750067435938,-300.548,0.00021917,2]
[366106844,1750067435948,-460.0,0.00021917,4]
[366106845,1750067435958,-468.13320924,0.00021917,4]
[366106846,1750067435967,-460.0,0.00021917,4]
[366106847,1750067435977,-460.0,0.00021917,4]
[366106848,1750067435988,-390.0,0.00021917,4]
[366106849,1750067435998,-612.09399453,0.00021917,4]
[366106850,1750067436008,-461.92082937,0.00021917,4]
[366106851,1750067436018,-460.0,0.00021917,4]
[366106852,1750067436028,-460.0,0.00021917,4]
[366106853,1750067436038,-590.65,0.00021917,2]
[366106854,1750067436048,-460.0,0.00021917,4]
[366106855,1750067436058,-460.0,0.00021917,4]
[366106856,1750067436070,-462.34448338,0.00021917,4]
[366106857,1750067436081,-460.0,0.00021917,4]
[366106858,1750067436090,-460.0,0.00021917,4]
[366106859,1750067436100,-460.0,0.00021917,4]
[366106860,1750067436110,-460.0,0.00021917,4]
[366106861,1750067436119,-460.0,0.00021917,4]
[366106862,1750067436129,-460.0,0.00021917,4]
[366106863,1750067436139,-460.0,0.00021917,4]
[366106864,1750067436152,-464.05036246,0.00021917,4]
[366106865,1750067436161,-405.49903618,0.00021917,4]
[366106866,1750067436170,-460.0,0.00021917,4]
[366106867,1750067436179,-460.0,0.00021917,4]
[366106868,1750067436189,-460.0,0.00021917,4]
[366106869,1750067436198,-460.0,0.00021917,4]
[366106870,1750067436207,-428.37290027,0.00021917,4]
[366106871,1750067436217,-460.0,0.00021917,4]
[366106872,1750067436227,-460.0,0.00021917,4]
[366106873,1750067436236,-318.09064611,0.00021917,4]
[366106874,1750067436246,-460.0,0.00021917,4]
[366106875,1750067436255,-460.0,0.00021917,4]
[366106876,1750067436264,-401.99466412,0.00021917,4]
[366106877,1750067436273,-460.0,0.00021917,4]
[366106878,1750067436283,-296.69369363,0.00021917,4]
[366106879,1750067436293,-461.24180096,0.00021917,4]
[366106880,1750067436302,-460.00535637,0.00021917,4]
[366106881,1750067436311,-460.0,0.00021917,4]
[366106882,1750067436321,-420.0,0.00021917,4]
[366106883,1750067436331,-460.0,0.00021917,4]
[366106884,1750067436340,-460.0,0.00021917,4]
[366106885,1750067436350,-420.72634445,0.00021917,4]
[366106886,1750067436359,-460.0,0.00021917,4]
[366106887,1750067436369,-460.0,0.00021917,4]
[366106888,1750067436380,-443.07390189,0.00021917,4]
[366106889,1750067436389,-460.0,0.00021917,4]
[366106890,1750067436398,-460.0,0.00021917,4]
[366106891,1750067436407,-238.33357003,0.00021917,4]
[366106892,1750067436417,-433.214834,0.00021917,4]
[366106893,1750067436427,-438.57329102,0.00021917,4]
[366106894,1750067436436,-460.0,0.00021917,4]
[366106895,1750067436446,-460.0,0.00021917,4]
[366106896,1750067436455,-332.88801505,0.00021917,4]
[366106897,1750067436465,-460.0,0.00021917,4]
[366106898,1750067436474,-280.12261847,0.00021917,4]
[366106899,1750067436483,-460.0,0.00021917,4]
[366106900,1750067436492,-460.0,0.00021917,4]
[366106901,1750067436501,-411.6369234,0.00021917,4]
[366106902,1750067436510,-460.0,0.00021917,4]
[366106903,1750067436520,-454.84659105,0.00021917,4]
[366106904,1750067436638,-460.0,0.00021917,4]
[366106905,1750067436648,-362.95478931,0.00021917,4]
[366106906,1750067436658,-460.0,0.00021917,4]
[366106907,1750067436667,-227.01886849,0.00021917,4]
[366106908,1750067436677,-440.0,0.00021917,4]
[366106909,1750067436686,-460.0,0.00021917,4]
[366106910,1750067436695,-460.0,0.00021917,4]
[366106911,1750067436704,-460.0,0.00021917,4]
[366106912,1750067436713,-460.0,0.00021917,4]
[366106913,1750067436723,-460.0,0.00021917,4]
[366106914,1750067436732,-460.0,0.00021917,4]
[366106915,1750067436742,-460.0,0.00021917,4]
[366106916,1750067436751,-460.0,0.00021917,4]
[366106917,1750067436760,-475.22798476,0.00021917,4]
[366106918,1750067436770,-460.0,0.00021917,4]
[366106919,1750067436779,-460.0,0.00021917,4]
[366106920,1750067436788,-465.45041051,0.00021917,4]
[366106921,1750067436797,-460.0,0.00021917,4]
[366106922,1750067436807,-460.62643224,0.00021917,4]
[366106923,1750067436816,-195.36245591,0.00021917,4]
[366106924,1750067436826,-423.20732303,0.00021917,4]
[366106925,1750067436835,-472.23030786,0.00021917,4]
[366106926,1750067436845,-460.0,0.00021917,4]
[366106927,1750067436855,-460.0,0.00021917,4]
[366106928,1750067436865,-460.0,0.00021917,4]
[366106929,1750067436874,-460.0,0.00021917,4]
[366106930,1750067436884,-420.0,0.00021917,4]
[366106931,1750067436893,-460.0,0.00021917,4]
[366106932,1750067436903,-460.0,0.00021917,4]
[366106933,1750067436912,-462.16394054,0.00021917,4]
[366106934,1750067436921,-460.0,0.00021917,4]
[366106935,1750067436931,-1171.34,0.00021917,4]
[366106936,1750067436940,-223.04034906,0.00021917,4]
[366106937,1750067436950,-460.0,0.00021917,4]
[366106938,1750067436960,-460.0,0.00021917,4]
[366106939,1750067436969,-420.0,0.00021917,4]
[366106940,1750067436979,-460.0,0.00021917,4]
[366106941,1750067436988,-460.0,0.00021917,4]
[366106942,1750067436998,-460.0,0.00021917,4]
[366106943,1750067437007,-460.0,0.00021917,4]
[366106944,1750067437017,-387.40667591,0.00021917,4]
[366106945,1750067437026,-460.0,0.00021917,4]
[366106946,1750067437035,-460.0,0.00021917,4]
[366106947,1750067437045,-460.0,0.00021917,4]
[366106948,1750067437054,-460.0,0.00021917,4]
[366106949,1750067437064,-460.0,0.00021917,4]
[366106950,1750067437077,-460.0,0.00021917,4]
[366106951,1750067437086,-460.0,0.00021917,4]
[366106952,1750067437095,-460.0,0.00021917,4]
[366106953,1750067437104,-460.0,0.00021917,4]
[366106954,1750067437114,-660.81,0.00021917,4]
[366106955,1750067437125,-558.39461952,0.00021917,4]
[366106956,1750067437135,-500.0,0.00021917,4]
[366106957,1750067437145,-977.33,0.00021917,4]
[366106958,1750067437155,-460.0,0.00021917,4]
[366106959,1750067437164,-460.0,0.00021917,4]
[366106960,1750067437174,-760.03,0.00021917,4]
[366106961,1750067437184,-1108.41,0.00021917,4]
[366106962,1750067437193,-460.0,0.00021917,4]
[366106963,1750067437203,-460.0,0.00021917,4]
[366106964,1750067437213,-460.0,0.00021917,4]
[366106965,1750067437223,-460.0,0.00021917,4]
[366106966,1750067437233,-460.0,0.00021917,4]
[366106967,1750067437244,-460.0,0.00021917,4]
[366106968,1750067437254,-460.0,0.00021917,4]
[366106969,1750067437263,-460.0,0.00021917,2]
[366106970,1750067437272,-460.0,0.00021917,4]
[366106971,1750067437282,-460.0,0.00021917,4]
[366106972,1750067437291,-460.0,0.00021917,4]
[366106973,1750067437300,-558.52,0.00021917,4]
[366106974,1750067437309,-422.41056959,0.00021917,4]
[366106975,1750067437318,-460.0,0.00021917,4]
[366106976,1750067437328,-460.0,0.00021917,4]
[366106977,1750067437337,-460.0,0.00021917,4]
[366106978,1750067437348,-460.0,0.00021917,4]
[366106979,1750067437357,-460.0,0.00021917,4]
[366106980,1750067437367,-460.0,0.00021917,4]
[366106981,1750067437377,-460.0,0.00021917,4]
[366106982,1750067437386,-460.0,0.00021917,4]
[366106983,1750067437395,-460.0,0.00021917,4]
[366106984,1750067437404,-460.0,0.00021917,4]
[366106985,1750067437414,-430.37332759,0.00021917,4]
[366106986,1750067437423,-420.0,0.00021917,4]
[366106987,1750067437432,-460.0,0.00021917,4]
[366106988,1750067437441,-460.0,0.00021917,4]
[366106989,1750067437451,-413.86317913,0.00021917,4]
[366106990,1750067437460,-460.0,0.00021917,4]
[366106991,1750067437470,-460.0,0.00021917,4]
[366106992,1750067437480,-401.18964997,0.00021917,4]
[366106993,1750067437493,-490.54,0.00021917,4]
[366106994,1750067437510,-460.0,0.00021917,4]
[366106995,1750067437526,-293.389818,0.00021917,2]
[366106996,1750067437540,-293.389818,0.00021917,2]
[366106997,1750067437555,-293.389818,0.00021917,2]
[366106998,1750067437570,-151.0,0.00021917,2]
[366106999,1750067437585,-151.0,0.00021917,2]
[366107000,1750067437601,-151.0,0.00021917,2]
[366107001,1750067437616,-414.91286384,0.00021917,4]
[366107002,1750067437632,-293.389818,0.00021917,2]
[366107003,1750067437648,-293.389818,0.00021917,2]
[366107004,1750067437663,-460.0,0.00021917,4]
[366107005,1750067437678,-293.389818,0.00021917,2]
[366107007,1750067437692,-460.0,0.00021917,4]
[366107010,1750067437707,-420.0,0.00021917,4]
[366107012,1750067437723,-460.0,0.00021917,4]
[366107013,1750067437737,-460.0,0.00021917,4]
[366107014,1750067437749,-460.0,0.00021917,4]
[366107015,1750067437761,-460.0,0.00021917,4]
[366107016,1750067437775,-460.0,0.00021917,4]
[366107017,1750067437790,-460.0,0.00021917,4]
[366107018,1750067437805,-460.0,0.00021917,4]
[366107019,1750067437821,-460.0,0.00021917,4]
[366107020,1750067437836,-460.0,0.00021917,4]
[366107022,1750067437851,-465.58630177,0.00021917,4]
[366107024,1750067437865,-446.93564314,0.00021917,4]
[366107027,1750067437876,-275.72868,0.00021917,2]
[366107029,1750067437887,-275.72868,0.00021917,2]
[366107031,1750067437900,-275.72868,0.00021917,2]
[366107033,1750067437915,-460.0,0.00021917,4]
[366107034,1750067437933,-460.0,0.00021917,4]
[366107035,1750067437946,-460.0,0.00021917,4]
[366107037,1750067437958,-460.0,0.00021917,4]
[366107038,1750067437971,-460.0,0.00021917,4]
[366107039,1750067437986,-460.0,0.00021917,4]
[366107040,1750067437999,-460.0,0.00021917,4]
[366107041,1750067438011,-275.72868,0.00021917,2]
[366107042,1750067438023,-275.72868,0.00021917,2]
[366107043,1750067438038,-460.0,0.00021917,4]
[366107044,1750067438051,-275.72868,0.00021917,2]
[366107045,1750067438065,-427.48376286,0.00021917,4]
[366107046,1750067438082,-460.0,0.00021917,4]
[366107047,1750067438096,-460.0,0.00021917,4]
[366107048,1750067438108,-460.0,0.00021917,4]
[366107049,1750067438120,-390.74820441,0.00021917,4]
[366107050,1750067438134,-460.0,0.00021917,4]
[366107051,1750067438150,-460.0,0.00021917,4]
[366107052,1750067438162,-460.0,0.00021917,4]
[366107053,1750067438175,-460.0,0.00021917,4]
[366107054,1750067438188,-460.0,0.00021917,4]
[366107055,1750067438203,-460.0,0.00021917,4]
[366107056,1750067438216,-460.0,0.00021917,4]
[366107057,1750067438229,-460.0,0.00021917,4]
[366107058,1750067438243,-199.36844907,0.00021917,4]
[366107059,1750067438256,-462.31880534,0.00021917,4]
[366107060,1750067438268,-460.0,0.00021917,4]
[366107061,1750067438281,-460.0,0.00021917,4]
[366107062,1750067438294,-460.0,0.00021917,4]
[366107063,1750067438307,-460.0,0.00021917,4]
[366107064,1750067438321,-460.0,0.00021917,4]
[366107065,1750067438334,-460.0,0.00021917,4]
[366107066,1750067438347,-460.0,0.00021917,4]
[366107067,1750067438362,-460.0,0.00021917,4]
[366107068,1750067438375,-460.0,0.00021917,4]
[366107069,1750067438390,-460.0,0.00021917,4]
[366107070,1750067438404,-465.94232285,0.00021917,4]
[366107071,1750067438418,-460.0,0.00021917,4]
[366107072,1750067438430,-460.0,0.00021917,4]
[366107073,1750067438445,-460.0,0.00021917,4]
[366107074,1750067438458,-177.37996635,0.00021917,4]
[366107075,1750067438470,-460.0,0.00021917,4]
[366107076,1750067438482,-460.0,0.00021917,4]
[366107077,1750067438495,-461.28833174,0.00021917,4]
[366107078,1750067438507,-460.0,0.00021917,4]
[366107079,1750067438520,-460.0,0.00021917,4]
[366107080,1750067438534,-151.0,0.00021917,2]
[366107081,1750067438546,-151.0,0.00021917,2]
[366107082,1750067438559,-151.0,0.00021917,2]
[366107083,1750067438571,-460.0,0.00021917,4]
[366107084,1750067438586,-460.0,0.00021917,4]
[366107085,1750067438598,-500.0,0.00021917,2]
[366107086,1750067438611,-504.07855771,0.00021917,2]
[366107087,1750067438624,-460.0,0.00021917,4]
[366107088,1750067438636,-460.0,0.00021917,4]